bitfinex-derivatives/quotes_BTCF0:USTF0_20260107
["timestamp","ask_amount","ask_price","bid_price","bid_amount"]
[1767797027306,0.09244,92005.0,91986.0,0.09299545]
[1767797027503,0.09244,92016.0,91991.0,0.13988859]
[1767797027710,0.010875,92025.0,92004.0,0.010877]
[1767797028100,0.09244,92026.0,92004.0,0.010877]
[1767797028411,0.09244,92026.0,92005.0,0.09299545]
[1767797029301,0.010875,92025.0,92005.0,0.09299545]
[1767797029911,0.09244,92026.0,92005.0,0.09299545]
[1767797030806,0.010875,92025.0,92005.0,0.10387245]
[1767797031107,0.09244,92026.0,92008.0,0.010877]
[1767797031297,0.09244,92026.0,92005.0,0.09299545]
[1767797031538,0.09244,92026.0,91972.0,0.010881]
[1767797031539,0.010877,92009.0,91983.0,0.09299545]
[1767797031703,0.010877,92007.0,91984.0,0.18547545]
[1767797031912,0.010877,92005.0,91986.0,0.010879]
[1767797032503,0.010877,92009.0,91988.0,0.010879]
[1767797032811,0.010877,92007.0,91986.0,0.010879]
[1767797033205,0.010877,92004.0,91984.0,0.09299545]
[1767797033409,0.010877,92004.0,91985.0,0.09248]
[1767797033606,0.010877,92009.0,91985.0,0.09248]
[1767797033803,0.010877,92007.0,91989.0,0.010879]
[1767797034105,0.09248,92012.0,91985.0,0.09248]
[1767797034106,0.010876,92010.0,91991.0,0.010878]
[1767797034310,0.09426716,92018.0,91986.0,0.09299545]
[1767797034311,0.09426716,92045.0,92019.0,0.09299545]
[1767797034513,0.09248,92053.0,92025.0,0.09299545]
[1767797034809,0.010872,92045.0,92026.0,0.10386945]
[1767797035011,0.010872,92045.0,92028.0,0.010874]
[1767797035216,0.09248,92053.0,92026.0,0.09299545]
[1767797035400,0.10513916,92047.0,92019.0,0.09248]
[1767797035715,0.09426716,92043.0,92019.0,0.09248]
[1767797035913,0.010874,92030.0,92014.0,0.09299545]
[1767797036303,0.010874,92030.0,92015.0,0.09248]
[1767797037314,0.09248,92041.0,92013.0,0.09248]
[1767797037315,0.010875,92025.0,92013.0,0.09248]
[1767797037521,0.09426716,92035.0,92007.0,0.09248]
[1767797037714,0.010875,92022.0,92007.0,0.09248]
[1767797038217,0.010875,92024.0,92008.0,0.09248]
[1767797038402,0.010875,92024.0,92008.0,0.010877]
[1767797038717,0.09426716,92032.0,92007.0,0.09248]
[1767797039222,0.010874,92028.0,92010.0,0.010876]
[1767797039422,0.010874,92031.0,92008.0,0.09299545]
[1767797039830,0.010874,92031.0,92011.0,0.09299545]
[1767797040011,0.010874,92029.0,92012.0,0.010876]
[1767797040308,0.14465236,92042.0,92007.0,0.09248]
[1767797040309,0.14465236,92030.0,92007.0,0.09248]
[1767797040723,0.010874,92031.0,92016.0,0.09918069]
[1767797041016,0.010874,92029.0,92016.0,0.09918069]
[1767797041406,0.010874,92029.0,92012.0,0.010876]
[1767797041813,0.010875,92025.0,92007.0,0.103357]
[1767797042016,0.010875,92025.0,91993.0,0.04518681]
[1767797042017,0.13816555,92029.0,92008.0,0.09248]
[1767797042219,0.010876,92015.0,92003.0,0.09248]
[1767797042415,0.010877,92007.0,91997.0,0.09248]
[1767797042607,0.09643191,92009.0,91977.0,0.09380562]
[1767797042810,0.04173364,92010.0,91971.0,0.010881]
[1767797042811,0.09643191,91999.0,91971.0,0.010881]
[1767797043011,0.09643191,91997.0,91957.0,0.09380562]
[1767797043214,0.010877,92006.0,91961.0,0.09248]
[1767797043215,0.13816555,91986.0,91961.0,0.09248]
[1767797043416,0.01088,91978.0,91961.0,0.09248]
[1767797043616,0.01088,91982.0,91961.0,0.09248]
[1767797043819,0.23064555,91986.0,91961.0,0.09248]
[1767797043820,0.01088,91976.0,91961.0,0.09248]
[1767797044023,0.01088,91977.0,91952.0,0.09248]
[1767797044219,0.00011962,91976.0,91961.0,0.010882]
[1767797044426,0.00011962,91976.0,91956.0,0.10468862]
[1767797044720,0.00011962,91976.0,91959.0,0.10468762]
[1767797045120,0.00011962,91976.0,91962.0,0.10468762]
[1767797045623,0.010879,91988.0,91967.0,0.10468662]
[1767797045831,0.010879,91986.0,91967.0,0.10468662]
[1767797046125,0.01088,91981.0,91959.0,0.010882]
[1767797046326,0.01088,91981.0,91960.0,0.010882]
[1767797047327,0.010881,91971.0,91956.0,0.09380562]
[1767797047532,0.010879,91991.0,91946.0,0.09380562]
[1767797047533,0.010882,91963.0,91946.0,0.09380562]
[1767797047826,0.05261364,91979.0,91946.0,0.18628562]
[1767797047827,0.010882,91967.0,91946.0,0.18628562]
[1767797048024,0.04173364,91970.0,91946.0,0.09248]
[1767797048222,0.09248,91972.0,91936.0,0.09248]
[1767797048223,0.13816555,91963.0,91936.0,0.09248]
[1767797048417,0.010883,91951.0,91932.0,0.010886]
[1767797048613,0.010884,91948.0,91928.0,0.10469162]
[1767797048818,0.09248,91955.0,91859.0,2.6e-07]
[1767797048819,0.13816555,91943.0,91859.0,2.6e-07]
[1767797049033,0.04173364,91915.0,91868.0,0.04518681]
[1767797049220,0.09248,91914.0,91875.0,0.09380562]
[1767797049420,0.09248,91914.0,91882.0,0.09380562]
[1767797049628,0.09248,91913.0,91886.0,0.09380562]
[1767797049829,0.010889,91906.0,91886.0,0.09380562]
[1767797050228,0.09248,91912.0,91875.0,0.09380562]
[1767797050229,0.010889,91900.0,91875.0,0.09380562]
[1767797050447,0.00010346,91899.0,91876.0,0.09248]
[1767797050935,0.00010346,91899.0,91877.0,0.09380562]
[1767797051114,0.00010346,91899.0,91865.0,0.09380562]
[1767797051421,0.01089,91898.0,91866.0,0.13899243]
[1767797051621,0.09643191,91917.0,91874.0,0.09380562]
[1767797051822,0.0001118,91897.0,91876.0,0.09380562]
[1767797052730,0.01089,91896.0,91876.0,0.09380562]
[1767797052931,0.0001118,91897.0,91876.0,0.09380562]
[1767797053255,0.0001118,91897.0,91877.0,0.010892]
[1767797053435,0.0001118,91897.0,91878.0,0.09380562]
[1767797054029,0.09643191,91917.0,91880.0,0.09380562]
[1767797054233,0.09252,91916.0,91883.0,0.09380562]
[1767797054421,0.09252,91915.0,91883.0,0.09380562]
[1767797054725,0.010888,91908.0,91883.0,0.09380562]
[1767797055231,0.010888,91913.0,91884.0,0.010891]
[1767797055437,0.010888,91909.0,91885.0,0.09380562]
[1767797055730,0.010889,91905.0,91886.0,0.09252]
[1767797056347,0.010888,91910.0,91886.0,0.09252]
[1767797056727,0.09252,91913.0,91886.0,0.09252]
[1767797056937,0.010888,91912.0,91887.0,0.09380562]
[1767797057235,0.010888,91912.0,91888.0,0.09256]
[1767797057535,0.010888,91908.0,91889.0,0.09256]
[1767797058233,0.010889,91905.0,91889.0,0.09256]
[1767797058441,0.09643191,91912.0,91871.0,0.04518681]
[1767797058632,0.05262164,91912.0,91872.0,0.09256]
[1767797058935,0.09643191,91908.0,91873.0,0.010893]
[1767797059133,0.09643191,91906.0,91872.0,0.09256]
[1767797059334,0.01089,91894.0,91872.0,0.09256]
[1767797059734,0.01089,91899.0,91872.0,0.103453]
[1767797059933,0.010889,91903.0,91878.0,0.05607881]
[1767797060127,0.09643191,91917.0,91878.0,0.04518681]
[1767797060327,0.09256,91916.0,91882.0,0.05607881]
[1767797060527,0.010888,91910.0,91885.0,0.09380562]
[1767797061228,0.010889,91907.0,91885.0,0.09380562]
[1767797061631,0.010889,91907.0,91885.0,0.10469662]
[1767797061834,0.010889,91907.0,91851.0,0.054478]
[1767797061835,0.01089,91896.0,91875.0,0.09380562]
[1767797062136,0.01089,91893.0,91876.0,0.09256]
[1767797062327,0.01089,91897.0,91876.0,0.09256]
[1767797062523,0.09643191,91909.0,91876.0,0.09256]
[1767797062835,0.01089,91895.0,91876.0,0.09256]
[1767797063037,0.01089,91899.0,91877.0,0.09380562]
[1767797063238,0.09643191,91908.0,91877.0,0.09380562]
[1767797063645,0.01089,91895.0,91877.0,0.09380562]
[1767797063934,0.09643191,91908.0,91877.0,0.09380562]
[1767797064139,0.010891,91891.0,91877.0,0.09380562]
[1767797064430,0.010889,91905.0,91877.0,0.09375562]
[1767797064630,0.010889,91904.0,91878.0,0.09256]
[1767797064837,0.09643191,91906.0,91871.0,0.04518681]
[1767797065028,0.01089,91891.0,91872.0,0.010893]
[1767797065630,0.010889,91903.0,91872.0,0.010893]
[1767797065831,0.010889,91903.0,91873.0,0.09256]
[1767797066331,0.010889,91903.0,91873.0,0.18636562]
[1767797066528,0.010889,91903.0,91874.0,0.09380562]
[1767797067034,0.010891,91887.0,91874.0,0.09380562]
[1767797067239,0.010891,91887.0,91873.0,0.09256]
[1767797067240,0.010892,91875.0,91870.0,0.09256]
[1767797067432,0.010892,91875.0,91865.0,0.09380562]
[1767797067433,0.09643191,91887.0,91856.0,0.09380562]
[1767797067629,0.010892,91875.0,91857.0,0.09256]
[1767797067845,0.09643191,91883.0,91857.0,0.09251026]
[1767797068230,0.09643191,91883.0,91840.0,0.010896]
[1767797068231,0.09643191,91880.0,91846.0,0.09380562]
[1767797068430,0.010892,91881.0,91858.0,0.010894]
[1767797068725,0.09643191,91890.0,91856.0,0.09380562]
[1767797068929,0.010892,91880.0,91861.0,0.09380562]
[1767797069131,0.09256,91889.0,91861.0,0.10469962]
[1767797069643,0.010891,91888.0,91861.0,0.09380562]
[1767797069840,0.010888,91912.0,91871.0,0.09380562]
[1767797069841,0.09643191,91899.0,91871.0,0.09380562]
[1767797070035,0.0926,91903.0,91879.0,0.09380562]
[1767797070336,0.0926,91903.0,91882.0,0.10469662]
[1767797070534,0.0926,91903.0,91880.0,0.0926]
[1767797070535,0.01089,91891.0,91880.0,0.0926]
[1767797070844,0.09643191,91902.0,91880.0,0.0926]
[1767797071244,0.01089,91893.0,91880.0,0.0926]
[1767797071442,0.09643191,91899.0,91880.0,0.0926]
[1767797071641,0.09643191,91899.0,91840.0,0.010896]
[1767797071642,0.09643191,91888.0,91862.0,0.0926]
[1767797071936,0.010891,91883.0,91863.0,0.010894]
[1767797072142,0.010891,91885.0,91866.0,0.010893]
[1767797072342,0.0926,91887.0,91863.0,0.09193803]
[1767797072730,0.010892,91881.0,91863.0,0.09193803]
[1767797072930,0.010892,91881.0,91864.0,0.010894]
[1767797073130,0.0926,91887.0,91866.0,0.09193803]
[1767797073430,0.010892,91881.0,91863.0,0.010894]
[1767797073634,0.010891,91884.0,91862.0,0.09193803]
[1767797073837,0.010891,91884.0,91865.0,0.010893]
[1767797074742,0.010892,91880.0,91862.0,0.10283203]
[1767797075245,0.01089,91892.0,91873.0,0.010893]
[1767797075446,0.01089,91892.0,91872.0,0.10283103]
[1767797075634,0.0926,91893.0,91872.0,0.09193803]
[1767797075944,0.0926,91899.0,91880.0,0.09193803]
[1767797076147,0.09649072,91896.0,91872.0,0.0926]
[1767797076347,0.010891,91884.0,91872.0,0.0926]
[1767797076644,0.010892,91881.0,91872.0,0.0926]
[1767797076836,0.010891,91884.0,91866.0,0.010893]
[1767797077030,0.09649072,91894.0,91869.0,0.010893]
[1767797077235,0.09649072,91894.0,91867.0,0.0926]
[1767797077236,0.010891,91887.0,91871.0,0.010893]
[1767797077443,0.010891,91890.0,91869.0,0.09193803]
[1767797077638,0.010891,91890.0,91873.0,0.010892]
[1767797077837,0.0926,91892.0,91872.0,0.010893]
[1767797078144,0.010891,91888.0,91872.0,0.010893]
[1767797078447,0.01089,91891.0,91876.0,0.010892]
[1767797079639,0.01089,91891.0,91869.0,0.09193803]
[1767797079640,0.01089,91894.0,91878.0,0.010892]
[1767797080245,0.01089,91892.0,91869.0,0.09193803]
[1767797080447,0.01089,91892.0,91877.0,0.010892]
[1767797081041,0.01089,91893.0,91880.0,0.010892]
[1767797081353,0.0926,91897.0,91880.0,0.010892]
[1767797081550,0.01089,91897.0,91882.0,0.010891]
[1767797081749,0.0926,91898.0,91884.0,0.010891]
[1767797081943,0.0926,91898.0,91867.0,0.0926]
[1767797081944,0.09649072,91923.0,91891.0,0.01089]
[1767797082145,0.010889,91903.0,91889.0,0.09193803]
[1767797082340,0.010889,91904.0,91890.0,0.010891]
[1767797082540,0.010888,91911.0,91889.0,0.09193803]
[1767797082740,0.010886,91925.0,91894.0,0.09193803]
[1767797082741,0.0926,91915.0,91894.0,0.09193803]
[1767797082945,0.09649072,91928.0,91898.0,0.09193803]
[1767797083151,0.0926,91927.0,91898.0,0.09193803]
[1767797083349,0.010887,91924.0,91910.0,0.010888]
[1767797083548,0.010887,91924.0,91895.0,0.0926]
[1767797083549,0.010887,91918.0,91902.0,0.10282703]
[1767797083745,0.0926,91926.0,91902.0,0.09193803]
[1767797083939,0.010887,91918.0,91902.0,0.09193803]
[1767797084144,0.0926,91926.0,91902.0,0.09193803]
[1767797084656,0.18909072,91926.0,91900.0,0.010889]
[1767797084957,0.18909072,91926.0,91896.0,0.09193803]
[1767797085452,0.18909072,91926.0,91903.0,0.010889]
[1767797085637,0.05301158,91934.0,91896.0,0.09193803]
[1767797085638,0.010887,91924.0,91909.0,0.010888]
[1767797085838,0.06133651,91939.0,91909.0,0.010888]
[1767797085839,0.103486,91930.0,91913.0,0.010888]
[1767797086042,0.103486,91930.0,91915.0,0.010888]
[1767797086043,0.010886,91930.0,91915.0,0.010888]
[1767797086242,0.010886,91928.0,91913.0,0.09193803]
[1767797086444,0.0926,91933.0,91914.0,0.010888]
[1767797086756,0.0926,91933.0,91913.0,0.09193803]
[1767797086940,0.010885,91941.0,91909.0,0.010888]
[1767797087145,0.010887,91924.0,91909.0,0.010888]
[1767797087741,0.010887,91924.0,91898.0,0.01089]
[1767797087742,0.09649072,91925.0,91893.0,0.09193803]
[1767797087944,0.211184,91944.0,91879.0,0.010892]
[1767797087945,0.010888,91908.0,91881.0,0.09193803]
[1767797088251,0.09649072,91909.0,91875.0,0.10266502]
[1767797088551,0.09649072,91908.0,91877.0,0.09193803]
[1767797088752,0.0926,91916.0,91890.0,0.09193803]
[1767797088944,0.010889,91902.0,91890.0,0.09193803]
[1767797089253,0.010889,91905.0,91890.0,0.09193803]
[1767797089843,0.010889,91903.0,91890.0,0.09193803]
[1767797090344,0.010889,91901.0,91887.0,0.0926]
[1767797090547,0.09649072,91918.0,91887.0,0.0926]
[1767797090548,0.09649072,91918.0,91888.0,0.09193803]
[1767797090749,0.0926,91917.0,91891.0,0.09193803]
[1767797091151,0.010889,91901.0,91887.0,0.0926]
[1767797091352,0.09649072,91912.0,91901.0,0.010889]
[1767797091568,0.010887,91918.0,91898.0,0.09193803]
[1767797091752,0.010888,91913.0,91898.0,0.09193803]
[1767797091953,0.010888,91914.0,91898.0,0.09193803]
[1767797092254,0.09649072,91927.0,91898.0,0.09193803]
[1767797092255,0.18909072,91927.0,91901.0,0.09193803]
[1767797092456,0.010888,91916.0,91899.0,0.0926]
[1767797092958,0.010888,91916.0,91900.0,0.010889]
[1767797093152,0.010887,91923.0,91906.0,0.010889]
[1767797093856,0.0926,91927.0,91906.0,0.010889]
[1767797094256,0.09649072,91934.0,91905.0,0.09193803]
[1767797094558,0.010887,91923.0,91906.0,0.010889]
[1767797094857,0.010887,91923.0,91899.0,0.0926]
[1767797094858,0.010887,91918.0,91899.0,0.0926]
[1767797095157,0.010887,91921.0,91903.0,0.010889]
[1767797095556,0.010887,91921.0,91905.0,0.010889]
[1767797096055,0.09649072,91930.0,91900.0,0.09193803]
[1767797096258,0.010887,91919.0,91901.0,0.0926]
[1767797096446,0.010887,91924.0,91906.0,0.010889]
[1767797096646,0.010887,91922.0,91905.0,0.010889]
[1767797096959,0.010887,91924.0,91903.0,0.18453803]
[1767797097258,0.010887,91924.0,91909.0,0.010888]
[1767797097442,0.0926,91928.0,91905.0,0.010889]
[1767797097652,0.010886,91927.0,91903.0,0.18453803]
[1767797097858,0.010886,91927.0,91909.0,0.010888]
[1767797098657,0.010886,91927.0,91911.0,0.010888]
[1767797098852,0.010887,91924.0,91903.0,0.18453803]
[1767797099159,0.010887,91921.0,91904.0,0.010889]
[1767797099347,0.0926,91928.0,91907.0,0.010889]
[1767797099543,0.010887,91924.0,91909.0,0.010888]
[1767797099754,0.010887,91922.0,91906.0,0.010889]
[1767797100253,0.010887,91925.0,91903.0,0.18453803]
[1767797100463,0.010885,91940.0,91903.0,0.18453803]
[1767797100464,0.09256,91931.0,91921.0,0.010887]
[1767797100661,0.04212658,91941.0,91912.0,0.09193803]
[1767797100858,0.09649072,91942.0,91920.0,0.010887]
[1767797101155,0.24242658,91948.0,91911.0,0.04538816]
[1767797101156,0.24242658,91948.0,91916.0,0.13732619]
[1767797101357,0.010885,91939.0,91920.0,0.010887]
[1767797101548,0.09649072,91935.0,91906.0,0.09193803]
[1767797101746,0.010889,91906.0,91900.0,0.09256]
[1767797101948,0.010889,91903.0,91885.0,0.010891]
[1767797102160,0.01089,91896.0,91886.0,0.09256]
[1767797102344,0.01089,91893.0,91877.0,0.09256]
[1767797102544,0.09075661,91893.0,91865.0,0.010893]
[1767797102746,0.010892,91880.0,91858.0,0.010894]
[1767797102950,0.010892,91880.0,91829.0,0.09854478]
[1767797102951,0.010893,91871.0,91852.0,0.09256]
[1767797103157,0.09075661,91879.0,91852.0,0.09256]
[1767797103354,0.09075661,91879.0,91856.0,0.010895]
[1767797103661,0.09256,91881.0,91858.0,0.09360227]
[1767797103962,0.09075661,91889.0,91869.0,0.010893]
[1767797104263,0.09075661,91889.0,91847.0,0.010896]
[1767797104264,0.0926,91890.0,91872.0,0.09360227]
[1767797104458,0.09075661,91882.0,91863.0,0.0926]
[1767797104648,0.010891,91889.0,91864.0,0.010894]
[1767797105056,0.010891,91889.0,91867.0,0.010893]
[1767797105253,0.0926,91896.0,91876.0,0.010892]
[1767797105458,0.0926,91896.0,91873.0,0.09360227]
[1767797105661,0.010889,91907.0,91877.0,0.09360227]
[1767797105868,0.0926,91906.0,91888.0,0.010891]
[1767797106158,0.010889,91905.0,91883.0,0.0926]
[1767797106361,0.010889,91905.0,91875.0,0.09360227]
[1767797106362,0.03841487,91905.0,91875.0,0.09360227]
[1767797106546,0.09075661,91904.0,91876.0,0.0926]
[1767797106752,0.09075661,91902.0,91884.0,0.010891]
[1767797107461,0.09865653,91924.0,91887.0,0.09602809]
[1767797107765,0.010888,91912.0,91887.0,0.10691909]
[1767797107989,0.09865653,91899.0,91878.0,0.010892]
[1767797108153,0.13775867,91897.0,91877.0,0.0926]
[1767797108348,0.010891,91888.0,91871.0,0.0926]
[1767797108548,0.09865653,91895.0,91871.0,0.0926]
[1767797108549,0.010891,91885.0,91871.0,0.0926]
[1767797109256,0.010893,91872.0,91858.0,0.09602809]
[1767797109464,0.010893,91872.0,91849.0,0.010895]
[1767797109465,0.010893,91872.0,91859.0,0.0926]
[1767797109650,0.010893,91867.0,91853.0,0.0926]
[1767797109849,0.0926,91874.0,91844.0,0.13514299]
[1767797110158,0.010893,91872.0,91851.0,0.010895]
[1767797110459,0.0926,91874.0,91854.0,0.010895]
[1767797110665,0.103493,91874.0,91854.0,0.010895]
[1767797110848,0.0926,91874.0,91854.0,0.10692309]
[1767797111453,0.010893,91873.0,91854.0,0.09602809]
[1767797111653,0.010893,91870.0,91850.0,0.103495]
[1767797111867,0.103492,91874.0,91853.0,0.010895]
[1767797112268,0.103492,91874.0,91851.0,0.10692309]
[1767797112269,0.010893,91872.0,91851.0,0.10692309]
[1767797112761,0.010893,91870.0,91851.0,0.09602809]
[1767797112962,0.103493,91874.0,91851.0,0.09602809]
[1767797113365,0.010891,91887.0,91860.0,0.09602809]
[1767797113565,0.010891,91885.0,91865.0,0.010893]
[1767797113764,0.0926,91886.0,91861.0,0.09602809]
[1767797113966,0.010891,91884.0,91863.0,0.010894]
[1767797114161,0.010892,91879.0,91861.0,0.09602809]
[1767797114369,0.0926,91884.0,91863.0,0.010894]
[1767797114370,0.010892,91882.0,91863.0,0.010894]
[1767797115073,0.010893,91874.0,91861.0,0.09602809]
[1767797115377,0.010893,91872.0,91859.0,0.00217726]
[1767797115562,0.09865653,91876.0,91859.0,0.00217726]
[1767797115761,0.09865653,91864.0,91843.0,0.0926]
[1767797116070,0.010894,91859.0,91843.0,0.0926]
[1767797116271,0.0926,91869.0,91844.0,0.09602809]
[1767797116470,0.2003,91879.0,91853.0,0.09602809]
[1767797116662,0.2003,91879.0,91859.0,0.09602809]
[1767797116859,0.2003,91879.0,91864.0,0.010894]
[1767797117365,0.0926,91884.0,91871.0,0.09602809]
[1767797117366,0.2003,91884.0,91871.0,0.09602809]
[1767797117567,0.05846305,91902.0,91875.0,0.09602809]
[1767797117774,0.010889,91906.0,91886.0,0.010891]
[1767797117973,0.0926,91910.0,91884.0,0.09602809]
[1767797118373,0.09865653,91908.0,91878.0,0.010892]
[1767797118678,0.01089,91898.0,91879.0,0.010892]
[1767797118881,0.010891,91885.0,91867.0,0.09602809]
[1767797119066,0.010891,91889.0,91868.0,0.103493]
[1767797119261,0.010891,91885.0,91854.0,0.0391149]
[1767797119478,0.09865653,91887.0,91855.0,0.18862809]
[1767797119675,0.010891,91885.0,91866.0,0.10692109]
[1767797119865,0.0926,91896.0,91866.0,0.10692109]
[1767797119866,0.09865653,91902.0,91876.0,0.010892]
[1767797120071,0.0926,91901.0,91876.0,0.010892]
[1767797120378,0.0926,91901.0,91866.0,0.0926]
[1767797120379,0.010892,91882.0,91866.0,0.0926]
[1767797120573,0.010892,91880.0,91866.0,0.0926]
[1767797121076,0.09865653,91889.0,91866.0,0.0926]
[1767797121077,0.010892,91879.0,91866.0,0.0926]
[1767797121271,0.10954753,91883.0,91866.0,0.0926]
[1767797121678,0.010891,91883.0,91866.0,0.0926]
[1767797121983,0.010892,91881.0,91866.0,0.0926]
[1767797122168,0.09865653,91886.0,91866.0,0.0926]
[1767797122169,0.010891,91884.0,91866.0,0.103493]
[1767797122368,0.09865653,91886.0,91866.0,0.0926]
[1767797122863,0.0926,91890.0,91866.0,0.0926]
[1767797123174,0.010891,91889.0,91867.0,0.09602809]
[1767797123370,0.010891,91889.0,91866.0,0.0926]
[1767797123371,0.01089,91895.0,91875.0,0.010892]
[1767797123571,0.0926,91896.0,91875.0,0.010892]
[1767797123771,0.010887,91917.0,91875.0,0.010892]
[1767797123772,0.09865653,91920.0,91885.0,0.09602809]
[1767797123971,0.010887,91917.0,91890.0,0.09602809]
[1767797124372,0.19125653,91920.0,91891.0,0.09602809]
[1767797124574,0.19125653,91920.0,91890.0,0.0391149]
[1767797124575,0.0926,91920.0,91900.0,0.09602809]
[1767797124774,0.0926,91920.0,91901.0,0.0926]
[1767797125285,0.0926,91920.0,91902.0,0.010889]
[1767797125676,0.0926,91920.0,91901.0,0.18862809]
[1767797125866,0.0926,91920.0,91901.0,0.19951709]
[1767797126071,0.010886,91925.0,91903.0,0.010889]
[1767797126383,0.010887,91923.0,91903.0,0.010889]
[1767797126684,0.09865653,91930.0,91901.0,0.18862809]
[1767797126888,0.13775867,91922.0,91893.0,0.0926]
[1767797127182,0.13775867,91922.0,91866.0,0.010893]
[1767797127183,0.09865653,91911.0,91891.0,0.10349]
[1767797127573,0.010888,91910.0,91891.0,0.10349]
[1767797127987,0.09865653,91911.0,91891.0,0.10349]
[1767797128177,0.010889,91907.0,91891.0,0.0926]
[1767797128379,0.010888,91909.0,91891.0,0.0926]
[1767797128572,0.09865653,91911.0,91891.0,0.10349]
[1767797128767,0.010888,91910.0,91891.0,0.0926]
[1767797129283,0.010888,91913.0,91892.0,0.01089]
[1767797129675,0.103488,91915.0,91896.0,0.01089]
[1767797129881,0.0926,91915.0,91898.0,0.01089]
[1767797130078,0.09865653,91928.0,91896.0,0.09602809]
[1767797130381,0.010887,91921.0,91901.0,0.010889]
[1767797130585,0.09865653,91919.0,91892.0,0.01089]
[1767797130781,0.010889,91907.0,91887.0,0.09602809]
[1767797130981,0.010889,91907.0,91888.0,0.0926]
[1767797131185,0.010888,91912.0,91893.0,0.01089]
[1767797131370,0.2003,91944.0,91888.0,0.0926]
[1767797131371,0.09865653,91933.0,91903.0,0.09602809]
[1767797131571,0.09865653,91933.0,91905.0,0.09602809]
[1767797131572,0.010887,91919.0,91905.0,0.09602809]
[1767797131774,0.0926,91932.0,91901.0,0.09721791]
[1767797131982,0.010886,91926.0,91902.0,0.09721791]
[1767797132281,0.010886,91931.0,91912.0,0.13648815]
[1767797132475,0.10368215,91949.0,91921.0,0.09721791]
[1767797132476,0.010884,91942.0,91921.0,0.09721791]
[1767797132678,0.103484,91942.0,91921.0,0.09721791]
[1767797132879,0.0926,91942.0,91925.0,0.010886]
[1767797133278,0.18322302,91942.0,91913.0,0.18981791]
[1767797133479,0.010886,91928.0,91897.0,0.13648815]
[1767797133790,0.13023599,91935.0,91897.0,0.13648815]
[1767797133791,0.09062302,91934.0,91910.0,0.010888]
[1767797134087,0.010886,91933.0,91912.0,0.09721791]
[1767797134286,0.103485,91934.0,91914.0,0.010888]
[1767797134581,0.103485,91934.0,91912.0,0.09721791]
[1767797134582,0.010885,91937.0,91917.0,0.010887]
[1767797134783,0.0926,91940.0,91914.0,0.010888]
[1767797134977,0.0926,91940.0,91912.0,0.09721791]
[1767797135287,0.010885,91938.0,91919.0,0.010887]
[1767797135580,0.010885,91937.0,91912.0,0.09721791]
[1767797135884,0.0926,91940.0,91914.0,0.010888]
[1767797136072,0.0926,91940.0,91915.0,0.09721791]
[1767797136386,0.010885,91936.0,91916.0,0.010887]
[1767797136593,0.010885,91936.0,91918.0,0.010887]
[1767797136883,0.010885,91935.0,91915.0,0.09721791]
[1767797137078,0.0926,91940.0,91910.0,0.23821259]
[1767797137079,0.09062302,91939.0,91911.0,0.010888]
[1767797137301,0.09062302,91939.0,91910.0,0.0926]
[1767797137302,0.0926,91940.0,91918.0,0.09721791]
[1767797137473,0.010884,91944.0,91926.0,0.010886]
[1767797137880,0.010884,91944.0,91923.0,0.010887]
[1767797138081,0.0012,91945.0,91927.0,0.010886]
[1767797138281,0.0012,91945.0,91929.0,0.010886]
[1767797138685,1e-06,91945.0,91928.0,0.13648815]
[1767797138890,0.01088,91980.0,91946.0,0.010884]
[1767797138891,0.03961297,91972.0,91946.0,0.010884]
[1767797139187,0.010882,91965.0,91946.0,0.103484]
[1767797139382,0.010881,91970.0,91953.0,0.010883]
[1767797139579,0.0926,91973.0,91946.0,0.103484]
[1767797139779,0.010882,91965.0,91948.0,0.010884]
[1767797139987,0.09062302,91976.0,91957.0,0.010883]
[1767797139988,0.01088,91976.0,91957.0,0.010883]
[1767797140174,0.01088,91980.0,91958.0,0.09256]
[1767797140379,0.01088,91978.0,91960.0,0.09721791]
[1767797140677,0.010881,91972.0,91959.0,0.09256]
[1767797140878,0.09062302,91978.0,91959.0,0.09256]
[1767797141182,0.01088,91978.0,91960.0,0.09721791]
[1767797141383,0.010879,91984.0,91963.0,0.010882]
[1767797141586,0.010879,91986.0,91962.0,0.09721791]
[1767797141889,0.09062302,91989.0,91964.0,0.10809991]
[1767797141890,0.010879,91984.0,91964.0,0.10809991]
[1767797142089,0.01088,91977.0,91964.0,0.09721791]
[1767797142386,0.01088,91980.0,91964.0,0.09721791]
[1767797142683,0.010881,91973.0,91955.0,0.10810091]
[1767797142884,0.09062302,91979.0,91956.0,0.09256]
[1767797143183,0.010882,91964.0,91946.0,0.09721791]
[1767797143488,0.010882,91963.0,91947.0,0.09256]
[1767797143683,0.010882,91963.0,91943.0,0.010884]
[1767797143887,0.010882,91963.0,91948.0,0.09256]
[1767797144186,0.010882,91965.0,91948.0,0.09256]
[1767797144389,0.010881,91969.0,91948.0,0.103444]
[1767797144689,0.09062302,91973.0,91951.0,0.010883]
[1767797144988,0.03961297,91982.0,91948.0,0.09256]
[1767797144989,0.01088,91979.0,91956.0,0.09721791]
[1767797145190,0.09256,91980.0,91956.0,0.09721791]
[1767797145387,0.09256,91980.0,91948.0,0.09256]
[1767797145388,0.03961297,91990.0,91958.0,0.09721791]
[1767797145584,0.010879,91988.0,91967.0,0.09721791]
[1767797145782,0.010879,91988.0,91968.0,0.09256]
[1767797146279,0.09256,91993.0,91968.0,0.18977791]
[1767797146481,0.010879,91989.0,91970.0,0.010881]
[1767797146894,0.09256,91993.0,91968.0,0.18977791]
[1767797147286,0.010879,91985.0,91968.0,0.18977791]
[1767797147491,0.09256,91993.0,91969.0,0.010881]
[1767797147883,0.09006,91993.0,91968.0,0.18977791]
[1767797148092,0.010878,91996.0,91973.0,0.09721791]
[1767797148288,0.09256,92004.0,91983.0,0.010879]
[1767797148592,0.09256,92004.0,91968.0,0.09256]
[1767797148593,0.09062302,91996.0,91961.0,0.09721791]
[1767797148788,0.010879,91991.0,91970.0,0.010881]
[1767797148986,0.010879,91989.0,91970.0,0.010881]
[1767797149187,0.010879,91989.0,91968.0,0.010881]